bitfinex-derivatives/quotes_ETHF0:USTF0_20241017
["timestamp","ask_amount","ask_price","bid_price","bid_amount"]
[1729196969337,1.76343,2608.4,2608.2,2.26425]
[1729196969536,0.38344,2608.3,2608.2,1.8808]
[1729196971448,0.38344,2608.3,2608.2,2.26426]
[1729196972034,1.76344,2608.4,2608.2,2.26426]
[1729196972341,1.38,2608.3,2608.2,2.26426]
[1729196972947,1.38,2608.3,2608.2,0.88426]
[1729196973338,1.76344,2608.3,2608.2,0.88426]
[1729196974034,1.76344,2608.3,2608.2,0.5008]
[1729196975342,2.28414,2608.3,2608.2,0.5008]
[1729196983655,3.2078,2608.4,2608.2,0.5008]
[1729196983957,0.38344,2608.3,2608.2,2.26425]
[1729196984453,0.38344,2608.3,2608.2,0.88425]
[1729196989062,1.38,2608.4,2608.2,0.5008]
[1729196989262,0.38344,2608.3,2608.2,0.88424]
[1729196989963,0.38344,2608.3,2608.2,0.5008]
[1729196990157,0.38344,2608.3,2608.2,0.88426]
[1729196990660,0.38344,2608.3,2608.2,0.5008]
[1729196990864,0.38344,2608.3,2608.2,0.88426]
[1729196991165,0.38344,2608.3,2608.2,0.5008]
[1729196991463,0.38344,2608.3,2608.2,0.88426]
[1729196996467,1.38,2608.4,2608.2,0.5008]
[1729196996674,0.38344,2608.4,2608.3,0.38344]
[1729196996866,3.4416,2608.5,2608.2,0.5008]
[1729196997368,1.76344,2608.4,2608.3,0.38344]
[1729196999469,1.76344,2608.4,2608.2,0.88425]
[1729196999667,0.38344,2608.4,2608.3,0.38344]
[1729196999860,1.76344,2608.4,2608.3,0.38344]
[1729197000260,1.76344,2608.4,2608.2,1.88121042]
[1729197000455,1.76344,2608.4,2608.2,1.88120042]
[1729197000660,0.472,2608.6,2608.4,0.38343]
[1729197000965,4.16617,2609.0,2608.5,2.78431]
[1729197001160,2.85439,2608.7,2608.5,2.78431]
[1729197001356,2.85439,2608.7,2608.6,0.3834]
[1729197001573,2.471,2608.7,2608.5,2.7843]
[1729197001870,0.3834,2608.6,2608.5,3.30401]
[1729197002062,1.7634,2608.6,2608.5,1.5406]
[1729197004060,1.7634,2608.6,2608.5,1.0209]
[1729197006371,1.38,2608.6,2608.2,0.5177]
[1729197006571,1.38,2608.3,2608.2,0.5199]
[1729197006769,1.76344,2608.3,2608.2,0.5199]
[1729197006964,0.9996,2608.5,2608.2,1.8999]
[1729197007172,7.0683,2608.7,2608.5,0.3834]
[1729197007470,3.3412,2608.7,2608.6,0.5199]
[1729197007768,1.47439,2608.7,2608.6,1.383]
[1729197007970,2.85439,2608.7,2608.6,0.9996]
[1729197008364,1.76339,2608.7,2608.6,0.9996]
[1729197009573,1.76339,2608.7,2608.6,1.383]
[1729197009776,0.38339,2608.7,2608.6,2.763]
[1729197010076,1.76339,2608.7,2608.6,2.3796]
[1729197010261,1.76339,2608.7,2608.6,2.763]
[1729197010462,2.27617,2608.9,2608.7,0.38338]
[1729197010765,0.38337,2608.8,2608.7,0.90288]
[1729197011475,1.76337,2608.8,2608.7,0.5195]
[1729197011862,0.5002,2609.1,2608.7,0.5195]
[1729197012068,1.38,2608.9,2608.8,0.38336]
[1729197012474,1.38,2609.0,2608.8,1.38]
[1729197012665,9.593,2609.5,2608.9,1.38]
[1729197012863,1.38,2609.2,2609.0,1.871]
[1729197013067,1.38,2609.1,2609.0,1.871]
[1729197013373,1.38,2609.1,2609.0,0.491]
[1729197013767,1.38,2609.1,2609.0,1.871]
[1729197015265,1.38,2609.1,2609.0,0.491]
[1729197016278,1.38,2609.1,2608.7,3.7273]
[1729197016476,1.38,2608.8,2608.7,4.2527]
[1729197016973,1.38,2608.8,2608.7,5.6327]
[1729197017167,1.38,2608.8,2608.7,4.2527]
[1729197017369,1.38,2608.8,2608.7,5.6327]
[1729197018878,0.9733,2609.0,2608.7,5.6327]
[1729197019076,1.38,2608.9,2608.8,1.38]
[1729197019283,1.38,2609.0,2608.8,1.38]
[1729197019471,1.38,2609.0,2608.9,1.38]
[1729197020175,1.5218,2609.3,2608.9,1.38]
[1729197020375,1.38,2609.1,2609.0,1.8656]
[1729197021077,1.38,2609.2,2609.0,1.8656]
[1729197021276,1.38,2609.2,2609.1,0.5201]
[1729197022274,1.38,2609.2,2609.0,0.4856]
[1729197022467,2.0709,2609.3,2608.8,1.8707]
[1729197022468,1.38,2609.1,2608.8,1.8707]
[1729197022673,1.38,2609.1,2609.0,0.519]
[1729197024070,1.38,2609.1,2608.8,0.4907]
[1729197024274,1.8749,2609.0,2608.8,1.8707]
[1729197024470,1.8749,2609.0,2608.9,0.5271]
[1729197027287,1.38,2609.1,2608.9,1.9071]
[1729197027588,2.9873,2609.2,2609.1,1.38]
[1729197027777,2.9873,2609.2,2609.0,1.8916]
[1729197027985,2.47,2609.2,2609.0,1.8916]
[1729197029186,1.09,2609.2,2609.1,1.38]
[1729197029380,1.8665,2609.3,2609.1,1.38]
[1729197029575,1.8665,2609.3,2609.0,1.8916]
[1729197029778,0.4865,2609.3,2609.0,1.8916]
[1729197029978,0.4865,2609.3,2609.1,1.38]
[1729197030188,1.8665,2609.3,2609.1,1.38]
[1729197030390,0.4865,2609.3,2609.2,0.5108]
[1729197030779,1.8665,2609.3,2609.2,0.5108]
[1729197031184,0.20689955,2609.6,2609.2,1.8908]
[1729197031386,1.38,2609.5,2609.3,1.9026]
[1729197031786,4.50747504,2609.7,2609.3,1.9026]
[1729197031990,1.38,2609.5,2609.4,0.5123]
[1729197036588,1.38,2609.5,2609.4,1.8923]
[1729197036986,3.42054777,2609.8,2609.4,1.8923]
[1729197037182,1.38,2609.8,2609.7,1.38]
[1729197037388,1.38,2609.8,2609.6,1.38]
[1729197037682,1.38,2609.8,2609.7,0.4834]
[1729197037883,1.869,2609.8,2609.7,0.4834]
[1729197038285,1.869,2609.8,2609.5,0.5079]
[1729197038496,1.38,2609.6,2609.5,0.5079]
[1729197039792,1.38,2609.6,2609.2,3.6912]
[1729197039992,1.38,2609.3,2609.2,0.4834]
[1729197040589,1.38,2609.3,2609.1,1.38]
[1729197040793,0.5219,2609.2,2609.1,1.38]
[1729197042297,3.7084,2609.5,2609.1,11.2128]
[1729197042596,3.7084,2609.5,2609.0,1.0153]
[1729197042597,3.7084,2609.5,2609.4,1.38]
[1729197043183,5.0884,2609.5,2609.4,1.38]
[1729197043588,3.7084,2609.5,2609.4,1.38]
[1729197044397,0.5006,2609.5,2609.4,1.38]
[1729197044702,3.7084,2609.5,2609.4,1.38]
[1729197046399,5.0884,2609.5,2609.2,1.38]
[1729197046592,1.902,2609.4,2609.2,1.38]
[1729197046791,1.902,2609.4,2609.3,0.5192]
[1729197047389,0.522,2609.4,2609.3,0.5192]
[1729197048193,1.902,2609.4,2609.3,0.5192]
[1729197049197,0.522,2609.4,2609.3,1.8992]
[1729197051789,1.902,2609.4,2609.3,1.8992]
[1729197052294,1.902,2609.4,2609.3,0.5192]
[1729197053293,1.902,2609.4,2609.2,1.38]
[1729197053499,1.902,2609.4,2608.4,5.526]
[1729197053500,1.38,2609.3,2608.7,2.37696042]
[1729197053701,1.38,2608.9,2608.8,1.8759]
[1729197053896,1.037,2609.4,2608.8,1.8759]
[1729197053897,1.38,2609.1,2608.8,1.8759]
[1729197054102,1.38,2609.3,2609.0,1.38]
[1729197054298,1.38,2609.3,2609.1,1.9]
[1729197054489,2.125,2609.4,2609.2,0.5261]
[1729197054891,1.38,2609.3,2609.2,0.5261]
[1729197055696,1.38,2609.3,2608.9,1.38]
[1729197055898,1.38,2609.1,2608.9,0.5034]
[1729197056091,1.38,2609.0,2608.7,0.5034]
[1729197056298,1.38,2609.0,2608.7,2.4095]
[1729197056299,1.38,2608.9,2608.7,2.4095]
[1729197057200,2.3831,2609.0,2608.7,1.0295]
[1729197057500,2.3831,2609.0,2608.8,1.38]
[1729197058293,1.0031,2609.0,2608.9,1.38]
[1729197058597,4.5878,2609.2,2608.9,1.38]
[1729197058792,4.5878,2609.2,2609.0,0.4924]
[1729197058999,4.5878,2609.2,2609.0,0.9834]
[1729197059900,1.38,2609.1,2609.0,0.491]
[1729197060092,1.38,2609.1,2608.7,2.4085]
[1729197060295,1.8747,2609.0,2608.8,0.491]
[1729197061300,1.8747,2609.0,2608.8,1.871]
[1729197062408,0.5207,2608.9,2608.8,0.491]
[1729197062704,1.9007,2608.9,2608.8,0.491]
[1729197062899,1.9007,2608.9,2608.6,3.2078]
[1729197063092,2.76,2608.7,2608.2,0.99696042]
[1729197063295,1.38,2608.3,2608.1,8.64169163]
[1729197063493,1.38,2608.3,2608.2,1.38]
[1729197063721,4.2958,2608.5,2608.2,1.38]
[1729197063904,5.6758,2608.5,2608.4,1.38]
[1729197064110,3.2078,2608.5,2608.4,1.38]
[1729197067703,4.5878,2608.5,2608.4,1.38]
[1729197069905,1.38,2608.5,2608.4,1.38]
[1729197070910,1.38,2608.5,2608.3,1.38]
[1729197071307,1.38,2608.5,2608.4,0.5204]
[1729197072010,1.38,2608.5,2608.4,1.91688391]
[1729197073716,2.76,2608.5,2608.4,1.91688391]
[1729197073918,12.5936,2608.5,2608.4,1.91688391]
[1729197074304,12.5936,2608.5,2608.4,1.12048391]
[1729197074612,12.5936,2608.5,2608.0,1.91717791]
[1729197074805,4.5878,2608.1,2608.0,1.91717791]
[1729197075007,4.2968,2608.1,2608.0,1.91717791]
[1729197075205,0.5065,2608.6,2608.0,1.91717791]
[1729197075206,1.38,2608.2,2608.0,3.29717791]
[1729197075513,2.469,2608.2,2608.0,3.29717791]
[1729197075819,1.089,2608.3,2608.1,1.0488]
[1729197076124,1.089,2608.3,2608.1,1.58]
[1729197077114,3.2078,2608.4,2608.1,1.58]
[1729197077516,0.4934,2608.6,2608.1,1.58]
[1729197077816,3.2078,2608.4,2608.1,1.58]
[1729197078115,1.087,2608.5,2608.1,1.58]
[1729197078511,3.2078,2608.4,2608.1,1.58]
[1729197081220,2.99,2608.2,2608.1,0.5167]
[1729197081412,2.99,2608.2,2608.0,1.91717791]
[1729197081721,3.2078,2608.1,2608.0,1.91717791]
[1729197082023,7.0422,2608.1,2608.0,1.91717791]
[1729197082221,13.0422,2608.1,2608.0,1.91717791]
[1729197084017,13.0422,2608.1,2608.0,1.12477791]
[1729197085721,13.0422,2608.1,2608.0,0.74797791]
[1729197086516,13.0422,2608.1,2607.3,1.0151]
[1729197086822,3.19646342,2608.2,2607.3,1.0151]
[1729197086823,2.99,2607.4,2607.3,1.0151]
[1729197089023,6.1978,2607.4,2607.0,0.5047]
[1729197089219,2.99,2607.1,2607.0,0.5047]
[1729197090725,12.826,2607.1,2606.6,1.91820762]
[1729197090923,2.99,2606.7,2606.6,1.91820762]
[1729197091122,4.077,2606.7,2606.6,1.91820762]
[1729197093523,13.913,2606.7,2606.6,1.91820762]
[1729197094824,13.913,2606.7,2605.8,0.5271]
[1729197095033,2.99,2605.9,2605.8,0.5271]
[1729197095233,0.51081855,2606.1,2605.8,0.5271]
[1729197095537,2.99,2606.0,2605.8,0.5271]
[1729197096623,2.99,2606.2,2605.8,0.5271]
[1729197096824,1.087,2606.1,2605.8,0.5271]
[1729197102427,2.99,2606.2,2605.8,0.5271]
[1729197102630,1.087,2606.1,2605.8,0.5271]
[1729197103138,2.99,2606.0,2605.8,0.5271]
[1729197103334,3.4722,2606.0,2605.8,0.5271]
[1729197103930,2.99,2606.0,2605.8,0.5271]
[1729197105830,6.1978,2606.0,2605.8,0.5271]
[1729197109740,7.2848,2606.0,2605.8,0.5271]
[1729197110832,4.077,2606.0,2605.8,0.5271]
[1729197115851,1.38,2605.9,2605.8,0.5271]
[1729197116540,1.38,2605.9,2605.8,2.44589653]
[1729197120643,1.38,2605.9,2605.8,1.91879653]
[1729197120837,1.854,2605.9,2605.8,1.91879653]
[1729197123831,1.38,2605.9,2605.8,1.91879653]
[1729197124034,1.38,2605.9,2605.8,2.41269653]
[1729197124234,5.2176,2605.9,2605.8,1.91879653]
[1729197124439,11.2176,2605.9,2605.8,1.91879653]
[1729197127943,5.2176,2605.9,2605.8,1.91879653]
[1729197129050,8.4254,2605.9,2605.8,1.91879653]
[1729197131868,3.2078,2605.9,2605.8,1.91879653]
[1729197132060,4.5878,2605.9,2605.8,1.91879653]
[1729197134766,4.5878,2605.9,2605.8,2.87949653]
[1729197135163,4.5878,2605.9,2605.8,3.87154814]
[1729197135463,4.5878,2605.9,2605.8,2.87949653]
[1729197136262,4.5878,2605.9,2605.8,3.39734814]
[1729197136466,5.0584,2605.9,2605.8,1.91879653]
[1729197138566,16.276,2605.9,2605.5,1.46095161]
[1729197138860,5.9678,2605.6,2605.5,0.4689]
[1729197141169,9.8054,2605.6,2605.2,0.99205161]
[1729197141370,9.8054,2605.6,2604.9,1.98410322]
[1729197141371,4.5878,2605.3,2605.0,1.93395161]
[1729197141668,4.5878,2605.3,2605.0,0.9419]
[1729197141669,1.086,2605.2,2605.0,0.9419]
[1729197141874,1.086,2605.2,2604.8,1.49905161]
[1729197141875,1.38,2605.1,2604.8,0.507]
[1729197142073,4.5878,2604.9,2604.8,0.9736]
[1729197142271,4.5878,2604.9,2604.8,1.4377]
[1729197142969,5.9678,2604.9,2604.8,0.507]
[1729197143166,9.807,2604.9,2604.6,0.99205161]
[1729197143367,2.76,2604.7,2604.6,0.481]
[1729197143963,3.0,2604.7,2604.6,0.481]
[1729197144567,12.8392,2604.7,2604.5,1.91975427]
[1729197144872,4.2938,2604.6,2604.5,1.91975427]
[1729197145262,8.133,2604.6,2604.5,1.91975427]
[1729197146566,3.2078,2604.6,2604.5,1.91975427]
[1729197146771,4.2938,2604.6,2604.5,1.91975427]
[1729197147974,14.133,2604.6,2604.5,1.91975427]
[1729197148664,8.133,2604.6,2604.5,1.91975427]
[1729197150775,4.2938,2604.6,2604.5,1.91975427]
[1729197153474,3.2078,2604.6,2604.5,1.91975427]
[1729197153884,4.2938,2604.6,2604.5,1.91975427]
[1729197163887,7.0538,2604.6,2604.5,1.91975427]
[1729197167982,16.893,2604.6,2604.5,1.91975427]
[1729197174584,17.10754925,2604.6,2604.5,1.91975427]
[1729197178079,3.2078,2604.6,2604.5,1.91975427]
[1729197178281,5.6728,2604.6,2604.5,1.91975427]
[1729197178696,7.0528,2604.6,2604.5,1.91975427]
[1729197179699,5.9678,2604.6,2604.5,1.91975427]
[1729197179993,7.0528,2604.6,2604.5,1.91975427]
[1729197181894,3.845,2604.6,2604.5,1.91975427]
[1729197182292,7.0528,2604.6,2604.5,1.91975427]
[1729197184986,3.845,2604.6,2604.5,1.91975427]
[1729197185183,7.0528,2604.6,2604.5,1.91975427]
[1729197186498,16.892,2604.6,2604.0,1.4444]
[1729197186799,2.76,2604.1,2604.0,1.4444]
[1729197187097,1.38,2604.1,2604.0,1.4444]
[1729197194193,4.5878,2604.1,2604.0,1.4444]
[1729197195015,9.8078,2604.1,2604.0,0.9656]
[1729197195208,9.8078,2604.1,2604.0,0.5026]
[1729197195502,9.8078,2604.1,2603.7,0.9909]
[1729197195702,3.2078,2603.9,2603.8,0.4813]
[1729197195897,5.9678,2603.9,2603.8,0.4813]
[1729197196604,4.5878,2603.9,2603.8,0.4813]
[1729197199103,4.9232,2603.9,2603.8,0.4813]
[1729197201205,6.3032,2603.9,2603.8,0.4813]
[1729197203513,4.9232,2603.9,2603.8,0.4813]
[1729197203811,3.5432,2603.9,2603.8,0.4813]
[1729197204006,4.9232,2603.9,2603.8,0.4813]
[1729197204906,3.8412,2603.9,2603.8,0.4813]
[1729197205117,4.9232,2603.9,2603.8,0.4813]
[1729197210006,2.462,2603.9,2603.8,0.4813]
[1729197210207,5.6698,2603.9,2603.8,0.4813]
[1729197213017,2.462,2603.9,2603.8,0.4813]
[1729197213318,5.6698,2603.9,2603.8,0.4813]
[1729197215715,7.0498,2603.9,2603.8,0.4813]
[1729197217924,5.6698,2603.9,2603.8,0.4813]
[1729197218123,7.0498,2603.9,2603.8,0.4813]
[1729197218723,5.6708,2603.9,2603.8,0.4813]
[1729197219811,7.0508,2603.9,2603.8,0.4813]
[1729197220121,5.6708,2603.9,2603.8,0.4813]
[1729197222413,2.463,2603.9,2603.8,0.4813]
[1729197222616,4.2908,2603.9,2603.8,0.4813]
[1729197222921,7.0508,2603.9,2603.8,0.4813]
[1729197225224,5.6708,2603.9,2603.8,0.4813]
[1729197226821,5.6708,2603.9,2603.8,1.48540829]
[1729197227119,5.6708,2603.9,2603.8,0.4813]
[1729197227722,2.463,2603.9,2603.8,0.4813]
[1729197227920,5.6708,2603.9,2603.8,0.4813]
[1729197228327,4.5878,2603.9,2603.8,0.4813]
[1729197228519,4.2878,2603.9,2603.8,5.32620829]
[1729197228716,5.6678,2603.9,2603.8,13.23090179]
[1729197229014,5.6678,2603.9,2603.8,3.39010179]
[1729197229825,7.0478,2603.9,2603.8,1.48649258]
[1729197231031,7.0478,2603.9,2603.8,0.4813]
[1729197231718,7.0478,2603.9,2603.8,1.48649258]
[1729197236226,5.6678,2603.9,2603.8,1.48649258]
[1729197236415,5.6678,2603.9,2603.8,1.88409606]
[1729197236622,5.6678,2603.9,2603.8,3.39025849]
[1729197237328,5.6678,2603.9,2603.8,2.88934413]
[1729197237513,5.6678,2603.9,2603.8,1.88409606]
[1729197237712,5.6678,2603.9,2603.8,2.88936373]
[1729197237911,4.5878,2603.9,2603.8,2.88936373]
[1729197238116,5.6678,2603.9,2603.8,2.88936373]
[1729197239123,5.6678,2603.9,2603.8,1.48656767]
[1729197239627,5.6678,2603.9,2603.8,3.39032886]
[1729197240317,7.0478,2603.9,2603.8,1.98746243]
[1729197240627,5.6678,2603.9,2603.8,1.48661734]
[1729197240931,5.6678,2603.9,2603.8,2.8897439]
[1729197241924,4.5878,2603.9,2603.8,2.8897439]
[1729197242126,3.2078,2603.9,2603.8,2.8897439]
[1729197242427,5.6678,2603.9,2603.8,3.39050565]
[1729197243622,2.46,2603.9,2603.8,3.39061033]
[1729197248324,2.46,2603.9,2603.8,3.39059453]
[1729197252933,2.46,2603.9,2603.8,1.88431883]
[1729197253334,2.46,2603.9,2603.8,3.39048126]
[1729197255335,2.99386448,2603.9,2603.8,3.39048126]
[1729197255722,2.46,2603.9,2603.8,3.39048126]
[1729197255922,2.99386448,2603.9,2603.8,3.39048126]
[1729197257531,2.99386448,2603.9,2603.8,1.98746243]
[1729197257730,2.99386448,2603.9,2603.8,3.39082709]
[1729197267131,2.99386448,2603.9,2603.8,3.3907599]
[1729197267327,1.91386448,2603.9,2603.8,3.3907599]
[1729197267633,1.28175017,2604.5,2603.8,16.53949855]
[1729197267929,3.2078,2604.6,2604.4,1.50771177]
[1729197268129,3.2078,2604.6,2604.5,2.24699747]
[1729197268333,3.2078,2604.6,2604.5,1.84773729]
[1729197269335,5.9678,2604.6,2604.5,0.8437]
[1729197269633,4.5878,2604.6,2604.5,0.8437]
[1729197270939,4.5878,2604.6,2604.5,1.2628]
[1729197274640,1.38,2604.6,2604.5,1.2628]
[1729197276238,2.76,2604.6,2604.5,1.2628]
[1729197277746,1.38,2604.6,2604.5,1.2628]
[1729197277952,2.76,2604.6,2604.5,1.2628]
[1729197280947,1.38,2604.6,2604.5,1.2628]
[1729197281451,2.456,2604.6,2604.5,1.2628]
[1729197282445,2.456,2604.6,2604.5,3.18255427]
[1729197283140,1.38,2604.6,2604.5,3.18255427]
[1729197285652,2.76,2604.6,2604.5,3.18255427]
[1729197286656,1.38,2604.6,2604.5,3.18255427]
[1729197291453,2.76,2604.6,2604.5,1.91975427]
[1729197291652,2.9962,2604.6,2604.5,1.91975427]
[1729197291865,1.6162,2604.6,2604.5,1.91975427]
[1729197293155,2.9962,2604.6,2604.5,1.91975427]
[1729197293353,1.6162,2604.6,2604.5,1.91975427]
[1729197293552,1.38,2604.6,2604.5,1.91975427]
[1729197294254,4.5878,2604.6,2604.5,1.91975427]
[1729197294460,5.9678,2604.6,2604.5,1.91975427]
[1729197295165,7.0398,2604.6,2604.5,1.91975427]
[1729197295651,5.6598,2604.6,2604.5,1.91975427]
[1729197296049,7.0398,2604.6,2604.5,1.91975427]
[1729197297456,7.0398,2604.6,2604.5,1.91808967]
[1729197299963,5.6598,2604.6,2604.5,1.91808967]
[1729197300161,7.0398,2604.6,2604.5,1.91808967]
[1729197301164,10.879,2604.6,2604.5,1.91808967]
[1729197302269,7.0398,2604.6,2604.5,1.91808967]
[1729197303355,10.879,2604.6,2604.5,1.91808967]
[1729197306372,7.6712,2604.6,2604.5,1.91808967]
[1729197307258,10.879,2604.6,2604.5,1.91808967]
[1729197309671,9.499,2604.6,2604.5,1.91808967]
[1729197309968,4.5878,2604.6,2604.5,1.91808967]
[1729197311672,4.5878,2604.6,2604.5,2.32498967]
[1729197315475,2.5642,2604.6,2604.5,3.70498967]
[1729197315774,2.5642,2604.6,2604.5,7.54418967]
[1729197315969,2.5642,2604.6,2604.5,13.54418967]
[1729197316172,3.9442,2604.6,2604.5,13.54418967]
[1729197316374,3.9442,2604.6,2604.5,6.16418967]
[1729197317379,3.9442,2604.6,2604.5,13.54418967]
[1729197317977,3.9442,2604.6,2604.5,14.94408887]
[1729197319484,3.9442,2604.6,2604.5,7.56408887]
[1729197320171,1.38,2604.6,2604.5,7.56408887]
[1729197320372,1.38,2604.6,2604.5,13.56408887]
[1729197320572,1.38,2604.6,2604.5,7.56408887]
[1729197321379,1.38,2604.6,2604.5,7.56345727]
[1729197323185,2.76,2604.6,2604.5,3.72425727]
[1729197323887,1.38,2604.6,2604.5,3.72425727]
[1729197325286,2.76,2604.6,2604.5,3.31735727]
[1729197325483,12.5992,2604.6,2604.5,3.31735727]
[1729197325678,3.8392,2604.5,2604.3,2.00527517]
[1729197325879,6.482,2604.4,2604.3,1.92755439]
[1729197326074,10.322,2604.4,2604.3,1.92755439]
[1729197326281,16.322,2604.4,2604.3,1.92755439]
[1729197327588,17.702,2604.4,2603.8,1.0033209]
[1729197327785,5.9678,2604.0,2603.8,1.0033209]
[1729197327979,4.5878,2604.0,2603.8,1.0033209]
[1729197328183,8.4278,2604.0,2603.8,1.0033209]
[1729197328688,4.5878,2604.0,2603.8,1.0033209]
[1729197328884,5.6558,2604.0,2603.8,1.0033209]
[1729197329091,5.6558,2604.0,2603.9,3.71256832]
[1729197329291,4.5878,2604.0,2603.9,3.71256832]
[1729197329481,5.6558,2604.0,2603.9,3.71256832]
[1729197332390,4.5878,2604.0,2603.9,3.71256832]
[1729197332683,2.448,2604.0,2603.9,3.71256832]
[1729197336186,1.38,2604.0,2603.9,1.2054]
[1729197336490,2.448,2604.2,2603.9,12.4254]
[1729197336696,1.38,2604.1,2603.9,2.5854]
[1729197337087,1.38,2604.0,2603.9,1.2054]
[1729197344390,1.38,2604.0,2603.9,3.12559662]
[1729197348496,1.38,2604.0,2603.9,2.70549662]
[1729197348697,1.38,2604.0,2603.9,1.92019662]
[1729197348902,1.7965,2604.0,2603.9,1.92019662]
[1729197349712,1.98864134,2604.0,2603.9,1.92019662]
[1729197351396,1.38,2604.0,2603.9,1.92019662]
[1729197351605,2.445,2604.0,2603.9,1.92019662]
[1729197354215,5.6528,2604.0,2603.9,1.92019662]
[1729197354712,2.445,2604.0,2603.9,1.92019662]
[1729197355021,5.6528,2604.0,2603.9,1.92019662]
[1729197357019,2.445,2604.0,2603.9,1.92019662]
[1729197357323,5.6528,2604.0,2603.9,1.92019662]
[1729197358215,2.445,2604.0,2603.9,1.92019662]
[1729197359221,5.6528,2604.0,2603.9,1.92019662]
[1729197361610,3.2078,2604.0,2603.9,3.30019662]
[1729197361814,5.6528,2604.0,2603.9,1.92019662]
[1729197364119,3.81540483,2604.4,2603.9,1.92019662]
[1729197364324,1.38,2604.1,2604.0,0.1767]
[1729197366030,1.38,2604.1,2604.0,1.5567]
[1729197366329,2.445,2604.2,2604.0,1.5567]
[1729197366723,1.38,2604.1,2604.0,1.5567]
[1729197367223,3.2078,2604.4,2604.0,5.3967]
[1729197367426,4.5878,2604.4,2604.1,1.8062]
[1729197367622,5.6528,2604.4,2604.1,1.8062]
[1729197367829,1.38,2604.3,2604.1,1.8062]
[1729197368833,1.38,2604.2,2604.1,1.8062]
[1729197369421,1.38,2604.2,2604.1,0.4262]
[1729197369627,1.38,2604.2,2604.0,0.5887]
[1729197369920,1.7862,2604.1,2604.0,0.5887]
[1729197370121,1.7862,2604.1,2604.0,0.9866]
[1729197371931,2.8512,2604.1,2604.0,0.9866]
[1729197372524,0.4206,2604.3,2604.0,0.9866]
[1729197372826,4.2728,2604.4,2604.2,1.38]
[1729197373139,3.2078,2604.4,2604.3,1.38]
[1729197373432,3.2078,2604.4,2604.3,7.38]
[1729197373627,3.2078,2604.4,2604.3,11.22]
[1729197375633,4.5878,2604.4,2604.3,3.84]
[1729197375831,4.5878,2604.4,2604.0,2.988526]
[1729197376031,1.38,2604.2,2604.1,2.7541874]
[1729197376331,1.38,2604.2,2604.1,2.75414227]
[1729197376530,1.38,2604.2,2604.1,6.59414227]
[1729197378730,1.38,2604.3,2604.1,2.75414227]
[1729197378932,1.38,2604.3,2604.2,1.38]
[1729197382431,1.38,2604.3,2604.0,0.9866]
[1729197382632,1.38,2604.1,2603.9,1.92019662]
[1729197382838,1.38,2604.0,2603.9,1.92019662]
[1729197383833,2.441,2604.0,2603.9,1.92019662]
[1729197389538,3.2078,2604.1,2603.9,3.30019662]
[1729197389743,3.2078,2604.1,2604.0,1.38]
[1729197390339,2.8688,2604.2,2604.0,1.38]
[1729197390635,2.441,2604.4,2604.1,1.38]
[1729197390835,2.441,2604.4,2604.2,1.8084]
[1729197391139,1.38,2604.4,2604.3,0.8147]
[1729197391340,4.5878,2604.5,2604.3,2.1947]
[1729197391539,3.2078,2604.5,2604.4,1.38]
[1729197391743,0.4148,2604.7,2604.4,4.5878]
[1729197392047,1.38,2604.8,2604.6,1.38]
[1729197392244,1.38,2604.8,2604.4,3.2078]
[1729197392245,0.8082,2605.0,2604.7,1.8084]
[1729197392438,1.8692,2605.0,2604.7,0.4284]
[1729197392637,1.38,2604.9,2604.8,1.7767]
[1729197392848,1.38,2604.9,2604.8,0.3967]
[1729197397247,1.38,2604.9,2604.4,1.50416418]
[1729197397453,1.38,2604.5,2604.4,1.50416418]
[1729197400850,1.38,2604.5,2604.2,5.20904958]
[1729197400851,3.2623,2604.5,2604.2,3.2078]
[1729197401154,1.38,2604.3,2604.2,3.2078]
[1729197401552,1.38,2604.3,2603.9,5.12799662]
[1729197401753,5.0901,2604.5,2603.9,5.12799662]
[1729197401754,1.38,2604.0,2603.9,5.12799662]
[1729197401951,3.0,2604.1,2603.9,5.12799662]
[1729197402256,0.4013,2604.0,2603.9,5.12799662]
[1729197402448,0.8295,2604.0,2603.9,5.12799662]
[1729197402852,3.0,2604.4,2603.9,5.12799662]
[1729197403053,1.061,2604.3,2603.9,5.12799662]
[1729197405153,1.4892,2604.4,2603.9,5.12799662]
[1729197406644,1.4892,2604.4,2604.0,0.3952]
[1729197406955,1.4892,2604.4,2604.1,0.4022]
[1729197410553,0.4282,2604.4,2604.1,0.4022]
[1729197410854,1.4862,2604.4,2604.1,0.4022]
[1729197411960,0.4282,2604.4,2604.1,0.4022]
[1729197414064,0.4282,2604.4,2604.2,0.3902]
[1729197419764,3.6065,2604.7,2604.2,0.3902]
[1729197419960,4.0051,2604.7,2604.2,0.3902]
[1729197420164,3.6064,2604.7,2604.2,1.89436418]
[1729197421158,3.6286,2605.0,2604.4,3.0]
[1729197421355,4.6866,2605.0,2604.4,3.0]
[1729197421560,4.6866,2605.0,2604.5,0.8255]
[1729197421763,3.6286,2605.0,2604.6,0.4273]
[1729197421975,4.6866,2605.0,2604.6,0.4273]
[1729197423875,1.38,2604.8,2604.6,1.8073]
[1729197424065,1.38,2604.9,2604.7,1.38]
[1729197427669,1.38,2604.9,2604.8,1.38]